Cogmind - Beta 13 @@@ ROGUE MODE // 2024.04.16 @ 23:01:08 Player: robb Result: Destroyed by Cetus Guard with Advanced Variable Charge Gun Performance ------------- Evolutions (4) 2000 Regions Visited (11) 2200 Robots Destroyed (121) 605 Value Destroyed (3687) 3687 Prototype IDs (5) 100 Alien Tech Used (0) 0 Bonus (814) 814 TOTAL SCORE: 9406 Bonus ------- High Alert Combat Kills 2 Follower Combat Kills 869 Friendly Fire -57 Cogmind --------- Core Integrity 0/850 Matter 300/300 Energy 308/310 System Corruption 12% Temperature Cool (18) Movement Rolling (105) Ox1 Location -6/Cetus Parts ------- > --- POWER (2) -------- Heavy Deuterium Engine > --- PROPULSION (4) --- Wheel Compact Wheel > --- UTILITY (6) ------ Medium Storage Unit Advanced Signal Interpreter Advanced Terrain Scan Processor Improved Targeting Computer Field Recycling Unit > --- WEAPON (3) ------- Autogun > --- INVENTORY (10) --- Light Nuclear Core Light Nuclear Core Light Nuclear Core Fusion Compressor Armored Leg Phase Cannon Autogun Autogun Peak State ------------ > --- POWER ------------ Fusion Compressor Fusion Compressor > --- PROPULSION ------- Medium Treads Medium Treads Improved Titanium Leg Armored Leg > --- UTILITY ---------- Large Storage Unit Enhanced Optical Array Advanced Sensor Array Advanced Terrain Scan Processor Improved Targeting Computer Advanced Melee Analysis Suite > --- WEAPON ----------- Precision Assault Rifle Precision Assault Rifle Mini Assault Cannon > --- INVENTORY -------- Light Fission Core Fusion Compressor Fusion Compressor Fusion Compressor Fusion Compressor Improved Medium Treads Large Matter Pod Matter Compressor Improved Signal Interpreter Precision Assault Rifle Coil Gun Coil Gun Assault Cannon Improved Grenade Launcher [Rating: 70] Favorites ----------- Power Heavy Ion Engine Engine Heavy Ion Engine Power Core Light Nuclear Core Propulsion Armored Treads Treads Armored Treads Leg Armored Leg Wheel Compact Wheel Utility Large Storage Unit Device Improved Terrain Scanner Storage Large Storage Unit Processor Advanced Terrain Scan Processor Protection Improved Light Armor Plating Weapon Improved Assault Rifle Energy Gun Small Laser Ballistic Gun Improved Assault Rifle Ballistic Cannon Flak Cannon Launcher Improved Grenade Launcher Impact Weapon Heavy Flail Slashing Weapon Katana Build | -11 -10 -10 -9 -9 -8 -7 -7 -7 -6 -6 -6 ------- Run | Yrd Mat Min Mat Min Mat Fac Low Low Fac Ext Cet Slots Evolved 8 | . . . 2 . 2 2 . . 2 . . Power 1 | . . . . . . 1 . . . . . Propulsion 2 | . . . 1 . 1 . . . . . . Utility 4 | . . . 1 . 1 1 . . 1 . . Weapon 1 | . . . . . . . . . 1 . . Parts Attached 135 | 5 9 1 31 . 16 11 4 5 26 27 . Power 25 | 1 1 1 4 . . 2 2 1 5 8 . Engine 15 | 1 . . 4 . . 1 1 . 2 6 . Core 10 | . 1 1 . . . 1 1 1 3 2 . Reactor . | . . . . . . . . . . . . Propulsion 38 | 1 3 . 13 . 5 2 . . 5 9 . Treads 31 | 1 3 . 13 . 5 2 . . 2 5 . Leg 3 | . . . . . . . . . 3 . . Wheel 4 | . . . . . . . . . . 4 . Hover . | . . . . . . . . . . . . Flight . | . . . . . . . . . . . . Utility 34 | 1 1 . 8 . 3 3 2 . 11 5 . Device 10 | . 1 . 3 . 1 1 . . 3 1 . Storage 6 | 1 . . 2 . . . . . 2 1 . Processor 11 | . . . 2 . 2 1 . . 6 . . Hackware . | . . . . . . . . . . . . Protection 7 | . . . 1 . . 1 2 . . 3 . Artifact . | . . . . . . . . . . . . Weapon 38 | 2 4 . 6 . 8 4 . 4 5 5 . Energy Gun 1 | 1 . . . . . . . . . . . Energy Cannon . | . . . . . . . . . . . . Ballistic Gun 21 | 1 4 . 6 . 2 . . 1 3 4 . Ballistic Cannon 6 | . . . . . 1 2 . 1 2 . . Launcher 3 | . . . . . 2 . . . . 1 . Special Weapon . | . . . . . . . . . . . . Impact Weapon 2 | . . . . . . 1 . 1 . . . Slashing Weapon 5 | . . . . . 3 1 . 1 . . . Piercing Weapon . | . . . . . . . . . . . . Special Melee Weapon . | . . . . . . . . . . . . Unidentified Prototypes 5 | . . . 2 . . . . . 3 . . Parts Lost 51 | . . . 3 1 3 3 12 3 . 24 2 Power 11 | . . . 1 . . 1 2 1 . 5 1 Propulsion 15 | . . . . . 1 2 4 . . 7 1 Utility 13 | . . . 2 1 . . 4 1 . 5 . Weapon 12 | . . . . . 2 . 2 1 . 7 . Highest Loss Streak 11 | . . . 1 1 2 2 5 3 . 11 2 To Critical Strikes 1 | . . . . . . 1 . . . . . Average Slot Usage (%) 90 | . 85 96 98 95 96 87 93 43 88 80 70 Engine 8 | . 10 . 7 11 9 5 6 7 7 9 13 Core 3 | . 3 10 3 . . 6 6 . 4 2 . Treads 23 | . 28 28 32 33 35 29 26 . 9 9 . Leg 2 | . . . . . . . . . 8 4 . Device 7 | . 1 14 11 7 8 7 13 . 5 3 6 Storage 7 | . 14 14 11 11 9 7 7 7 6 3 6 Processor 13 | . . . 8 11 16 11 7 7 24 23 20 Protection 2 | . . . . . . 3 7 6 . 4 . Ballistic Gun 11 | . 18 28 21 22 9 . . 5 9 10 6 Ballistic Cannon 4 | . . . . . . 7 14 5 8 3 . Naked Turns . | . . . . . . . . . . . . Heaviest Build 60 | 12 15 15 35 35 38 46 50 41 51 60 42 Greatest Support 94 | 20 40 40 63 60 83 83 83 3 56 94 36 Greatest Overweight (x) 15 | . . . . . . . 15 13 9 12 1 Average Overweight (x) . | . . . . . . . . 12 . 1 1 Largest Inventory Capacity 15 | 8 8 8 15 15 15 15 15 15 15 15 10 Average Capacity 13 | 6 8 8 12 15 15 15 15 15 15 10 10 Most Carried 15 | 5 8 8 15 15 15 15 14 11 15 15 8 Average Carried 11 | 3 7 8 12 15 14 13 12 8 8 10 8 Final Capacity 15 | 8 8 8 15 15 15 15 15 15 15 10 10 Final Carried 15 | 5 8 8 15 15 15 12 11 8 14 8 8 Class Distribution -------------------- 61% | Mutant 15% | Scavenger-Mutant 11% | Skirmisher 10% | Gunner Dominant Class ---------------- Mutant | -10/Materials Mutant | -10/Mines Scavenger-Mutant | -9/Materials Mutant | -9/Mines Mutant | -8/Materials Mutant | -7/Factory Mutant | -7/Lower Caves Mutant | -7/Lower Caves Skirmisher | -6/Factory Mutant | -6/Extension Scavenger-Mutant | -6/Cetus Resources | -11 -10 -10 -9 -9 -8 -7 -7 -7 -6 -6 -6 ----------- Run | Yrd Mat Min Mat Min Mat Fac Low Low Fac Ext Cet Matter Collected 4930 | 250 148 42 1018 217 288 171 345 18 903 1530 . Remotely . | . . . . . . . . . . . . Salvage Created 4897 | . 310 50 1318 220 1192 229 106 63 495 914 . Parts 248 | . 25 3 76 13 56 9 4 1 12 49 . Haulers Intercepted 4 | . 1 . 2 . . . . . 1 . . Recyclers Shooed 7 | . 3 . 1 . . . . . 1 2 . Parts Field Recycled . | . . . . . . . . . . . . Retrieved Matter . | . . . . . . . . . . . . Parts Self-Destructed 4 | . . . . . . . 4 . . . . Prevented . | . . . . . . . . . . . . Kills | -11 -10 -10 -9 -9 -8 -7 -7 -7 -6 -6 -6 ------- Run | Yrd Mat Min Mat Min Mat Fac Low Low Fac Ext Cet Combat Hostiles Destroyed 88 | . 7 1 24 8 19 7 4 . 4 14 . Melee 12 | . . . . . 10 2 . . . . . Guns 59 | . 7 1 24 8 5 . . . 2 12 . Cannons 13 | . . . . . . 5 4 . 2 2 . AOE 4 | . . . . . 4 . . . . . . Classes Destroyed 14 | . 4 . 3 . 4 1 . . . 2 . Worker 9 | . . . 3 . 1 . . . 1 4 . Builder 5 | . . . . . 2 1 . . . 2 . Hauler 4 | . 1 . 2 . . . . . 1 . . Recycler 9 | . . . 2 . 4 . . . 2 1 . Mechanic 1 | . . . . . 1 . . . . . . Watcher 5 | . 1 . 2 . . . . . 2 . . Swarmer 23 | . 3 . 6 5 . 3 . . 2 4 . Grunt 42 | . 4 1 12 3 12 2 4 . 2 2 . Duelist 1 | . . . . . 1 . . . . . . Sentry 14 | . . . 6 . 4 1 . . . 3 . Specialist 2 | . . . . . 2 . . . . . . Hunter 3 | . . . . . . 1 . . . 2 . Programmer 2 | . . . . . . . . . . 2 . Behemoth 1 | . . . . . . . . . . 1 . Decomposer 3 | . . . . . . . . 3 . . . Best Kill Streak 7 | . 3 1 5 4 7 3 2 . 3 5 . Combat Bots Only 4 | . 3 1 4 4 3 3 2 . 2 3 . Max Kills in Single Turn 4 | . 2 1 1 1 4 2 2 1 2 2 . Gunslinging 1 | . 1 . . . . . . . . . . Exploded 1 | . . . . . 1 . . . . . . Melee 1 | . . . . . 1 1 . . . . . Uniques/NPCs Destroyed . | . . . . . . . . . . . . Combat | -11 -10 -10 -9 -9 -8 -7 -7 -7 -6 -6 -6 -------- Run | Yrd Mat Min Mat Min Mat Fac Low Low Fac Ext Cet Hostile Shots Fired 918 | . 37 2 149 53 105 99 136 20 24 282 11 Missed 258 | . 7 . 35 17 34 24 46 4 10 79 2 Damage Taken 10511 | . 313 30 1443 406 1116 943 1311 562 239 3884 264 Core 1956 | . 44 14 211 55 138 92 344 175 45 747 91 Absorbed by Shields 23 | . . . . . . . . . . 23 . Regen/Repaired (Parts) 28 | . . . . . . 28 . . . . . Core Remaining (%) 59 | 100 . 76 . 33 74 . . 12 . . . Volleys Fired 331 | . 28 2 96 17 22 21 11 6 38 90 . Largest 3 | . 2 2 2 2 2 2 2 2 3 3 . Hottest 104 | . 60 40 46 46 59 88 88 74 104 104 . Shots Fired 630 | . 56 4 191 36 34 41 22 12 78 156 . Gun 482 | . 56 4 191 36 29 . . 6 40 120 . Cannon 143 | . . . . . . 41 22 6 38 36 . Launcher 5 | . . . . . 5 . . . . . . Special . | . . . . . . . . . . . . Kinetic 607 | . 38 4 191 36 29 41 22 12 78 156 . Thermal 18 | . 18 . . . . . . . . . . Explosive 5 | . . . . . 5 . . . . . . Electromagnetic . | . . . . . . . . . . . . Robot Hit Streak 30 | . 7 5 17 7 30 10 5 5 15 24 . Robot Miss Streak 10 | . 3 . 6 1 1 10 8 2 4 2 . Penetration Max 1 | . . . . . . . . 1 . 1 . Secondary Targets 1 | . 1 . . . . . . . . . . Max Gunslinging Chain 1 | . 1 . . . . . . . . . . Shots Hit Robots 471 | . 32 4 137 24 59 43 19 13 25 115 . Core Hits 232 | . 16 3 53 11 38 25 22 3 15 46 . Critical Kills 2 | . . . . . . . . . . 2 . Critical Parts Destroyed 4 | . . . . . 1 . . . 1 2 . Critical Strikes 20 | . . . . . 8 2 . 1 3 6 . Destroy 6 | . . . . . 1 . . . 1 4 . Blast 5 | . . . . . . . . 1 2 2 . Sever 9 | . . . . . 7 2 . . . . . Melee Attacks 63 | . . . . . 35 18 . 10 . . . Impact 6 | . . . . . . 5 . 1 . . . Slashing 57 | . . . . . 35 13 . 9 . . . Piercing . | . . . . . . . . . . . . Sneak Attacks 2 | . . . . . 1 1 . . . . . Combat Hostiles . | . . . . . . . . . . . . Follow-up Attacks 2 | . . . . . . 1 . 1 . . . Damage Inflicted 9701 | . 379 46 1998 343 2074 696 359 317 676 2813 . Guns 5589 | . 379 46 1991 343 390 . . 86 228 2126 . Cannons 1928 | . . . . . . 340 359 94 448 687 . Explosions 634 | . . . . . 634 . . . . . . Melee 1543 | . . . . . 1050 356 . 137 . . . Ramming 7 | . . . 7 . . . . . . . . Kinetic 7360 | . 222 46 1991 343 390 340 359 180 676 2813 . Thermal 157 | . 157 . . . . . . . . . . Explosive 634 | . . . . . 634 . . . . . . Electromagnetic . | . . . . . . . . . . . . Impact 49 | . . . . . . 49 . . . . . Slashing 1494 | . . . . . 1050 307 . 137 . . . Piercing . | . . . . . . . . . . . . Highest Corruption 12 | . . . 5 5 . . . . . 12 12 Average Corruption 5 | . . . 5 5 . . . . . 7 12 Corruption Purged . | . . . . . . . . . . . . Corruption Blocked . | . . . . . . . . . . . . Effects 84 | . . . 29 23 . . . . . 32 . Message Errors 18 | . . . 5 3 . . . . . 10 . Matter Fused 22 | . . . 9 7 . . . . . 6 . Heat Flow Errors 9 | . . . 3 3 . . . . . 3 . Energy Discharges 9 | . . . 1 4 . . . . . 4 . Parts Rejected 2 | . . . . . . . . . . 2 . Parts Fused 2 | . . . . 1 . . . . . 1 . Data Loss (minor) 9 | . . . 5 3 . . . . . 1 . Data Loss (major) 4 | . . . 3 . . . . . . 1 . Misfires 4 | . . . 1 2 . . . . . 1 . Misdirections 1 | . . . . . . . . . . 1 . Weapon Failures 4 | . . . 2 . . . . . . 2 . Overload Shots . | . . . . . . . . . . . . Overflow Damage 100 | . . . . . 42 . . 34 24 . . Projectiles 58 | . . . . . . . . 34 24 . . Explosions . | . . . . . . . . . . . . Melee 42 | . . . . . 42 . . . . . . Knockbacks 54 | . . . . . . 25 19 2 5 3 . Impact . | . . . . . . . . . . . . Kinetic 48 | . . . . . . 21 18 1 5 3 . Secondary 6 | . . . . . . 4 1 1 . . . Self-Inflicted Damage . | . . . . . . . . . . . . Shots . | . . . . . . . . . . . . Rammed 2 | . . . 1 . . . . . . 1 . Targets Rammed 2 | . . . 1 . . . . . . 1 . Kicked . | . . . . . . . . . . . . Crushed . | . . . . . . . . . . . . Highest Temperature 350 | . 64 . 301 272 6 291 318 7 188 350 . Average Temperature 79 | . 24 . 64 75 3 108 89 5 52 106 . Received Heat Transfer 2997 | . 141 18 714 165 585 210 841 18 63 224 18 Effects 5 | . . . 3 . . . 1 . . 1 . Shutdowns 1 | . . . . . . . . . . 1 . Interference 3 | . . . 3 . . . . . . . . Matter Decay 1 | . . . . . . . 1 . . . . Siege Activations . | . . . . . . . . . . . . Robots Corrupted . | . . . . . . . . . . . . Combat Hostiles . | . . . . . . . . . . . . Parts Fried . | . . . . . . . . . . . . Impact Corruptions . | . . . . . . . . . . . . Robots Melted . | . . . . . . . . . . . . Combat Hostiles . | . . . . . . . . . . . . Parts Melted 7 | . 2 . . 1 . . . . 4 . . Heat Transferred 350 | . 350 . . . . . . . . . . Parts Sabotaged . | . . . . . . . . . . . . Parts Stolen . | . . . . . . . . . . . . Parts Stripped . | . . . . . . . . . . . . Power Chain Reactions . | . . . . . . . . . . . . Alert | -11 -10 -10 -9 -9 -8 -7 -7 -7 -6 -6 -6 ------- Run | Yrd Mat Min Mat Min Mat Fac Low Low Fac Ext Cet Peak Influence 452 | . 166 58 452 267 289 198 . . 354 261 52 Initial 143 | . . 28 22 143 22 130 . . 27 130 52 Average 149 | . 82 52 265 130 126 108 . . 169 106 50 Maximum Alert Level 2 | . . . 2 1 1 . . . 1 1 . Low Security (%) 67 | 100 100 100 18 70 78 100 . . 57 84 100 Level 1 31 | . . . 76 29 21 . . . 42 15 . Level 2 . | . . . 4 . . . . . . . . Level 3 . | . . . . . . . . . . . . Level 4 . | . . . . . . . . . . . . Level 5 . | . . . . . . . . . . . . High Security . | . . . . . . . . . . . . Max Security . | . . . . . . . . . . . . Squads Dispatched 14 | . 1 . 1 . 2 3 . . 5 2 . Investigation 5 | . 1 . . . . 2 . . 2 . . Extermination 1 | . . . . . . . . . 1 . . Reinforcement 8 | . . . 1 . 2 1 . . 2 2 . Assault . | . . . . . . . . . . . . Garrison . | . . . . . . . . . . . . Intercept . | . . . . . . . . . . . . Searches Triggered . | . . . . . . . . . . . . Construction Impeded 1 | . . . . . . . . . . 1 . Haulers Reinforced 1 | . . . . . . . . . 1 . . Active Scanning Responses . | . . . . . . . . . . . . Cargo Convoy Interrupts . | . . . . . . . . . . . . Stealth | -11 -10 -10 -9 -9 -8 -7 -7 -7 -6 -6 -6 --------- Run | Yrd Mat Min Mat Min Mat Fac Low Low Fac Ext Cet Distress Signals 14 | . 1 . 3 . 6 . . . . 3 1 Communications Jammed 2 | . . . . . . 2 . . . . . Distress Signals 1 | . . . . . . 1 . . . . . Times Spotted 163 | . 12 2 36 12 28 8 5 3 25 28 4 Peak Tracking Total 7 | . 3 2 7 4 6 3 2 3 5 5 5 Tactical Retreats 12 | . 1 . 3 1 1 . . 1 2 3 . Traps | -11 -10 -10 -9 -9 -8 -7 -7 -7 -6 -6 -6 ------- Run | Yrd Mat Min Mat Min Mat Fac Low Low Fac Ext Cet Traps Triggered 2 | . 1 . . . . . . . 1 . . Indirectly . | . . . . . . . . . . . . Trap Hack Attempts . | . . . . . . . . . . . . Triggered . | . . . . . . . . . . . . Disarmed . | . . . . . . . . . . . . Reprogrammed . | . . . . . . . . . . . . Reused . | . . . . . . . . . . . . Traps Extracted . | . . . . . . . . . . . . Installed . | . . . . . . . . . . . . Triggered . | . . . . . . . . . . . . Machines | -11 -10 -10 -9 -9 -8 -7 -7 -7 -6 -6 -6 ---------- Run | Yrd Mat Min Mat Min Mat Fac Low Low Fac Ext Cet Machines Disabled 5 | . . . 1 . 2 . . . . 2 . Max in Single Turn 1 | . . . 1 . 1 . . . . 1 . Machines Repaired . | . . . . . . . . . . . . Machines Dismantled . | . . . . . . . . . . . . Machines Sabotaged . | . . . . . . . . . . . . Overloaded Fab Kills . | . . . . . . . . . . . . Hacking | -11 -10 -10 -9 -9 -8 -7 -7 -7 -6 -6 -6 --------- Run | Yrd Mat Min Mat Min Mat Fac Low Low Fac Ext Cet Machines Accessed 38 | . 7 . 6 . 4 4 2 . 6 9 . Terminals 32 | . 6 . 6 . 3 2 1 . 5 9 . Fabricators 2 | . . . . . . 1 . . 1 . . Repair Stations 1 | . . . . . . 1 . . . . . Recycling Units 1 | . 1 . . . . . . . . . . Scanalyzers 1 | . . . . . 1 . . . . . . Garrison Access . | . . . . . . . . . . . . Total Hacks 89 | . 23 . 11 . 10 14 3 . 9 19 . Successful 35 | . 9 . 1 . 4 6 3 . 5 7 . Failed 54 | . 14 . 10 . 6 8 . . 4 12 . Catastrophic 19 | . 5 . 5 . 3 1 . . 1 4 . Database Lockouts . | . . . . . . . . . . . . Manual 35 | . 7 . 9 . 7 6 3 . 1 2 . Terminals 73 | . 21 . 11 . 7 6 2 . 7 19 . Fabricators 6 | . . . . . . 4 . . 2 . . Repair Stations 4 | . . . . . . 4 . . . . . Recycling Units 2 | . 2 . . . . . . . . . . Scanalyzers 3 | . . . . . 3 . . . . . . Garrison Access . | . . . . . . . . . . . . Terminal Hacks 25 | . 7 . 1 . 2 2 3 . 3 7 . Record 3 | . . . . . . . 2 . 1 . . Part Schematic 2 | . 1 . . . 1 . . . . . . Open Door 4 | . . . . . . . 1 . 1 2 . Branch Access Points 3 | . . . 1 . . . . . 1 1 . Emergency Access Points 1 | . 1 . . . . . . . . . . Terminal Index 2 | . 1 . . . . 1 . . . . . Fabricator Index 3 | . 1 . . . 1 1 . . . . . Maintenance Status 1 | . . . . . . . . . . 1 . Investigation Status 1 | . . . . . . . . . . 1 . Recall Investigation 1 | . . . . . . . . . . 1 . Hauler Manifests 2 | . 1 . . . . . . . . 1 . Zone Layout 2 | . 2 . . . . . . . . . . Fabricator Hacks 3 | . . . . . . 1 . . 2 . . Load Schematic 2 | . . . . . . 1 . . 1 . . Build 1 | . . . . . . . . . 1 . . Repair Station Hacks 3 | . . . . . . 3 . . . . . Scan Component 2 | . . . . . . 2 . . . . . Repair 1 | . . . . . . 1 . . . . . Recycling Unit Hacks 2 | . 2 . . . . . . . . . . Report Inventory 1 | . 1 . . . . . . . . . . Retrieve Components 1 | . 1 . . . . . . . . . . Scanalyzer 2 | . . . . . 2 . . . . . . Insert Component 1 | . . . . . 1 . . . . . . Analyze 1 | . . . . . 1 . . . . . . Garrison Access Hacks . | . . . . . . . . . . . . Unauthorized Hacks . | . . . . . . . . . . . . Terminals . | . . . . . . . . . . . . Fabricators . | . . . . . . . . . . . . Repair Stations . | . . . . . . . . . . . . Recycling Units . | . . . . . . . . . . . . Scanalyzers . | . . . . . . . . . . . . Garrison Access . | . . . . . . . . . . . . Data Cores Recovered 3 | . . . . . . . . . 1 2 . Used 3 | . . . . . . . . . 1 2 . Hacking Detections 28 | . 6 . 4 . 2 4 1 . 4 7 . Full Trace Events 4 | . 1 . . . . 2 . . 1 . . Feedback Events . | . . . . . . . . . . . . Feedback Blocked . | . . . . . . . . . . . . Robot Schematics Acquired . | . . . . . . . . . . . . Robots Built . | . . . . . . . . . . . . Authchips . | . . . . . . . . . . . . Time . | . . . . . . . . . . . . Total Robot Build Rating . | . . . . . . . . . . . . Part Schematics Acquired 3 | . 1 . . . 2 . . . . . . Parts Built . | . . . . . . . . . . . . Authchips . | . . . . . . . . . . . . Time 73 | . . . . . . . . . 73 . . Total Part Build Rating . | . . . . . . . . . . . . Parts Repaired 1 | . . . . . . 1 . . . . . Time 38 | . . . . . . 38 . . . . . Parts Recycled . | . . . . . . . . . . . . Recycled Matter . | . . . . . . . . . . . . Retrieved Matter . | . . . . . . . . . . . . Retrieved Components 10 | . 10 . . . . . . . . . . Parts Scanalyzed 1 | . . . . . 1 . . . . . . Part Schematics Acquired 1 | . . . . . 1 . . . . . . Parts Damaged . | . . . . . . . . . . . . Bothacking | -11 -10 -10 -9 -9 -8 -7 -7 -7 -6 -6 -6 ------------ Run | Yrd Mat Min Mat Min Mat Fac Low Low Fac Ext Cet Used RIF Installer . | . . . . . . . . . . . . Robots Hacked . | . . . . . . . . . . . . Non-combat . | . . . . . . . . . . . . Combat . | . . . . . . . . . . . . Robot Hacks Applied . | . . . . . . . . . . . . Relay Couplers Released . | . . . . . . . . . . . . Fabnet Peak Effective % . | . . . . . . . . . . . . Robots Rewired . | . . . . . . . . . . . . Allies Hacked . | . . . . . . . . . . . . Hacks Repelled . | . . . . . . . . . . . . Allies | -11 -10 -10 -9 -9 -8 -7 -7 -7 -6 -6 -6 -------- Run | Yrd Mat Min Mat Min Mat Fac Low Low Fac Ext Cet Total Allies 6 | . . . . 3 . . . 1 . 2 . Largest Group 2 | . . . . 2 2 . . 1 1 2 . Highest-Rated Group 179 | . . . . 45 45 . . 135 135 179 . Highest-Rated Ally 159 | . . . . 31 31 . . 135 135 159 . Total Orders . | . . . . . . . . . . . . Ally Attacks 90 | . . . . 8 4 . . 1 39 38 . Total Damage 2812 | . . . . 128 63 . . 51 1584 986 . Kills 32 | . . . . 2 . . . 1 20 9 . Allies Corrupted . | . . . . . . . . . . . . Allies Melted . | . . . . . . . . . . . . Intel | -11 -10 -10 -9 -9 -8 -7 -7 -7 -6 -6 -6 ------- Run | Yrd Mat Min Mat Min Mat Fac Low Low Fac Ext Cet Robot Analysis Total . | . . . . . . . . . . . . Derelict Logs Recovered 3 | . . . . 1 . . 2 . . . . Drone Launches . | . . . . . . . . . . . . Drone Recoveries . | . . . . . . . . . . . . Exploration | -11 -10 -10 -9 -9 -8 -7 -7 -7 -6 -6 -6 ------------- Run | Yrd Mat Min Mat Min Mat Fac Low Low Fac Ext Cet Turns Passed 10800 | 57 669 147 1621 1054 1027 715 1899 168 1625 1794 24 Spaces Moved 5013 | 33 330 88 714 517 446 295 1046 19 736 765 24 Core 134 | 9 . . . . . . 22 19 8 76 . Treads 4610 | 24 330 88 714 517 446 295 1024 . 659 513 . Legs 69 | . . . . . . . . . 69 . . Wheels 200 | . . . . . . . . . . 176 24 Hover . | . . . . . . . . . . . . Flight . | . . . . . . . . . . . . Fastest Speed 50 | 50 160 160 160 170 167 162 162 500 160 86 101 Average Speed 176 | 130 160 160 161 170 168 166 176 663 188 194 101 Slowest Speed 800 | 160 160 160 170 170 170 167 800 700 500 650 105 Overloaded Moves . | . . . . . . . . . . . . Propulsion Burnouts . | . . . . . . . . . . . . Robots Hopped . | . . . . . . . . . . . . Cave-ins Triggered 1 | . . . . . . . . . . 1 . Exploration Rate (%) 38 | 3 53 23 55 93 30 8 89 3 22 73 10 Regions Visited 11 Branch Regions 6 Pre-discovered Areas 3 | . . . . 1 . . 2 . . . . Known Exits Taken 3 | . . . 1 . . . . . 1 1 . Unknown Exits Taken 8 | 1 1 1 . 1 1 1 1 1 . . . Scrap Searched 2 | . . . . . . . 2 . . . . Spaces Dug 11 | . . . . . . 6 . . 5 . . Terrain Destroyed 58 | . . . . . 37 6 . . 10 5 . Melee 6 | . . . . . . 6 . . . . . Projectile 15 | . . . . . . . . . 10 5 . AOE 37 | . . . . . 37 . . . . . . Terrain Rammed . | . . . . . . . . . . . . Walls Destroyed . | . . . . . . . . . . . . Machines Disabled . | . . . . . . . . . . . . Actions | -11 -10 -10 -9 -9 -8 -7 -7 -7 -6 -6 -6 --------- Run | Yrd Mat Min Mat Min Mat Fac Low Low Fac Ext Cet Total 6303 | 47 423 90 1001 659 635 452 1085 38 915 934 24 Wait 581 | . 36 . 101 124 97 102 22 . 76 23 . Move 5002 | 32 329 87 713 516 445 294 1045 18 735 764 24 Hop . | . . . . . . . . . . . . Pick Up 116 | 10 10 . 26 1 12 5 3 . 28 21 . Fast Attach 24 | . 4 1 6 . 3 . . . . 10 . Attach 65 | 5 1 . 5 . 6 7 4 3 19 15 . Detach 2 | . . . . . . . . . 2 . . Swap 46 | . 4 . 20 . 7 4 . 2 7 2 . Drop 71 | . 11 . 33 1 8 2 . . 10 6 . Fire 331 | . 28 2 96 17 22 21 11 6 38 90 . Melee 61 | . . . . . 35 17 . 9 . . . Ram . | . . . . . . . . . . . . Kick . | . . . . . . . . . . . . Crush 2 | . . . 1 . . . . . . 1 . Escape Stasis 2 | . . . . . . . . . . 2 . Rewire . | . . . . . . . . . . . . Trap . | . . . . . . . . . . . . Miscellaneous . | . . . . . . . . . . . . Route ------- -11/Scrapyard -10/Materials (discovered 2 exits: *Mat / [*Min]) -10/Mines -9/Materials (discovered 2 exits: *Mat / *Min) -9/Mines -8/Materials -7/Factory -7/Lower Caves -7/Lower Caves -6/Factory (discovered 4 exits: Low x2 / *Ext x2) -6/Extension (discovered 2 exits: *Fac / *Cet) -6/Cetus History --------- Turn | Location | Event 37 | -11/Scrapyard | Discovered new exit (range 12) 58 | -11/Scrapyard | Entered Materials 220 | -10/Materials | Discovered new exit (range 3) 346 | -10/Materials | Build established: Mutant 664 | -10/Materials | Discovered new exit (range 9) 727 | -10/Materials | Entered Mines 728 | -10/Mines | Assembled infested the area 733 | -10/Mines | Assisted by a Guerilla fighting off Assembled 855 | -10/Mines | Discovered new exit (range 13) 874 | -10/Mines | Entered Materials 874 | -9/Materials | Evolved 2 slots: Propulsion x1, Utility x1 1100 | -9/Materials | Identified exit to Mines 1362 | -9/Materials | Build established: Scavenger-Mutant 1859 | -9/Materials | Discovered new exit (range 5) 2467 | -9/Materials | Core integrity fell below 50% 2495 | -9/Materials | Entered Mines 2498 | -9/Mines | Received a Mining Laser from a helpful Derelict 2603 | -9/Mines | Build established: Mutant 3290 | -9/Mines | Discovered new exit (range 2) 3366 | -9/Mines | A weapon hastily lodged in a ceiling crevice suddenly fell to the ground 3549 | -9/Mines | Entered Materials 3549 | -8/Materials | Accompanied by 2 allies 3549 | -8/Materials | Evolved 2 slots: Propulsion x1, Utility x1 3554 | -8/Materials | Led the pair of lost Derelicts to an unsafe place 4157 | -8/Materials | Build established: Scavenger-Mutant 4520 | -8/Materials | Build established: Mutant 4539 | -8/Materials | Discovered new exit (range 16) 4576 | -8/Materials | Entered Factory 4576 | -7/Factory | Evolved 2 slots: Power x1, Utility x1 4692 | -7/Factory | Repaired Katana 5149 | -7/Factory | Discovered new exit (range 11) 5291 | -7/Factory | Entered Lower Caves 5292 | -7/Lower Caves | Encountered a Warlord checkpoint 5807 | -7/Lower Caves | Learned location of Zion (-7) 6079 | -7/Lower Caves | Discovered new exit (range 14) 6946 | -7/Lower Caves | Spotted B-75 Beast 7009 | -7/Lower Caves | Lost 5 parts (3n2u) 7089 | -7/Lower Caves | Lost 3 parts (1p1n1w) 7121 | -7/Lower Caves | Core integrity fell below 50% 7158 | -7/Lower Caves | Lost 3 parts (1p1u1w) 7190 | -7/Lower Caves | Entered another Lower Caves area 7350 | -7/Lower Caves | Core integrity fell below 20% 7352 | -7/Lower Caves | AD-0RF showed up to help 7354 | -7/Lower Caves | AD-0RF revealed a hidden path 7358 | -7/Lower Caves | Entered Factory 7358 | -6/Factory | Accompanied by 1 ally (AD-0RF) 7358 | -6/Factory | Evolved 2 slots: Utility x1, Weapon x1 7383 | -6/Factory | Lost 3 parts (1p1u1w) 7503 | -6/Factory | Spotted B-75 Beast 7512 | -6/Factory | Allies destroyed B-75 Beast 7771 | -6/Factory | Build established: Gunner 7976 | -6/Factory | Identified exit to Lower Caves 7976 | -6/Factory | Identified exit to Extension 8386 | -6/Factory | Build established: Skirmisher 8983 | -6/Factory | Entered Extension 8983 | -6/Extension | Accompanied by 1 ally (AD-0RF) 9132 | -6/Extension | Spotted B-75 Beast 9455 | -6/Extension | Rescued A7 9676 | -6/Extension | Build established: Gunner 9782 | -6/Extension | Identified exit to Cetus 9803 | -6/Extension | Rescued a captive Derelict 9872 | -6/Extension | Spotted B-75 Beast 9900 | -6/Extension | Allies destroyed B-75 Beast 9901 | -6/Extension | Extracted ID and sensor layout for unrecognized location from A7's data core 9941 | -6/Extension | Crushed by falling debris 9964 | -6/Extension | Destroyed B-75 Beast 9977 | -6/Extension | Lost 5 parts (1p2n1u1w) 10049 | -6/Extension | Core integrity fell below 50% 10077 | -6/Extension | Core integrity fell below 20% 10121 | -6/Extension | Lost 11 parts (3p3n1u4w) 10238 | -6/Extension | Build established: Mutant 10408 | -6/Extension | Disrupted transfer network 10531 | -6/Extension | System corruption reached 10% 10727 | -6/Extension | Discovered new exit (range 15) 10762 | -6/Extension | Identified exit to Factory 10769 | -6/Extension | Lost 4 parts (2u2w) 10777 | -6/Extension | Entered Cetus 10792 | -6/Cetus | Spotted Cetus Guard 10792 | -6/Cetus | Spotted Cetus Guard 10795 | -6/Cetus | Spotted Cetus Guard 10801 | -6/Cetus | Destroyed by Cetus Guard with Advanced Variable Charge Gun Last Messages --------------- Acquired 2 matter. Acquired 8 matter. BX27,GQ9>5MFKXKWVGE%F0YY/3DOIF5SLYOTR7,W Acquired Autogun. R-10 Processor exits Transfer Station. T-07 Excavator exits Transfer Station. A-15 Conveyor exits Transfer Station. EXIT=IDENTIFIED: FACTORY Acquired Arm. Leg. Acquired Phase Cannon. K-01 Serf enters Transfer Station. System corrupted: Matter fused (-9). T-07 Excavator enters Transfer Station. LOCATION=CETUS GOAL=ESCAPE Penetrated by Slug. Wheel destroyed. Penetrated by Slug. Imp. Deuterium Engine destroyed. Penetrated by Slug. Map ----- +----------------------------------------------------+ | ????????????????????????????????????????????? | | ????????????????????????????????????????????? | | ????????????????????????????????????????????? | | ????????????????????????????????????????????? | | ????????????????????????????????????????????? | | ????????????????????????????????????????????? | | ????????????????????????????????????????????? | | ????????????????????????????????????????????? | | ????????????????????????????????????????????? | | ????????????????????????????????????????????? | | ????????????????????????????????????????????? | | ????????????????????????????????????????????? | | ????????????????????????????????????????????? | | ????????????????????????????????????????????? | | ????????????????????????????????????????????? | | ????????????????????????????????????????????? | | ????????????????????????????????????????????? | | ????????????????????????????????????????????? | | ????????????????????????????????????????????? | | ????????????????????????????????????????????? | | ????????????????????????????????????????????? | | ????????????????????????????????????????????? | | ????????????????????????????????????????????? | | ??????????????????????????#?????????????????? | | ?##############;;###### ####??????????????? | | ?# @ Y ????????? | | ?# Y w ????????? | | ?# Y ????????? | | ?############################### ?????????? | | ????????????????????????????????????????????? | | ????????????????????????????????????????????? | | ????????????????????????????????????????????? | | ????????????????????????????????????????????? | | ????????????????????????????????????????????? | | ????????????????????????????????????????????? | | ????????????????????????????????????????????? | | ????????????????????????????????????????????? | | ????????????????????????????????????????????? | | ????????????????????????????????????????????? | | ????????????????????????????????????????????? | | ????????????????????????????????????????????? | | ????????????????????????????????????????????? | | ????????????????????????????????????????????? | | ????????????????????????????????????????????? | | ????????????????????????????????????????????? | | ????????????????????????????????????????????? | | ????????????????????????????????????????????? | | ????????????????????????????????????????????? | | ????????????????????????????????????????????? | | ????????????????????????????????????????????? | +----------------------------------------------------+ Best States ------------- Heat Dissipation 42 Energy Generation 45 Energy Capacity 500 Matter Stores 300 Matter Capacity 300 Sight Range 22 Robot Scan Range 16 Terrain Scan Range 16 Terrain Scan Density 210 Jamming Range 12 Armor Coverage 450 Evasion (%) 50 Targeting Accuracy 6 Melee Accuracy 8 Target Analysis 6 Recoil Reduction 4 Item Schematics ----------------- Sensor Array | -10/Materials | Hacked Terrain Scan Processor | -8/Materials | Hacked Arm. Treads | -8/Materials | Scanalyzed Robot Schematics ------------------ None Fabricated ------------ Nothing Alien Tech Used ----------------- None Achievements -------------- Dynamic Key Hey, That's Mine! I Spy Prison Break Challenges ------------ None Game ------ Seed DroneRegenerativeTearclaws Manual? 0 Play Time 01:36:42 Cumulative 16.9 hours Start 2024.04.16 @ 20:56:48 End 2024.04.16 @ 23:01:08 Sessions 3 Manual Loads 0 Difficulty Rogue Special Mode None Game No. 17 Rogue 17 Adventurer 0 Explorer 0 Win Type - Total 0 Types 0/0/0/0/0/0/0/0/0 Lore% 15 Gallery% 21 Achievement% 17 Wizard Run 0 Options --------- Layout 2 ASCII 0 Keyboard 0 Movement Mouse Keybinds 0 Fullscreen 1 Font 24/Smallcaps Map View 50x44 Zoom Use 0% Tactical HUD 0 Map Filters NONE Filters NONE Steam 1 RUN: d41aa97b-307d-4553-b38e-da4644652266